[Event "Titled Tuesday Blitz February 28 Early 2023"]
[White "Qashashvili, Alexandre"]
[Black "Flis, Pawel"]
[WhiteFideId "13600842"]
[BlackFideId "1112864"]
[WhiteElo "2405"]
[BlackElo "1822"]
[Result "0-1"]
[Round "09"]
[TimeControl "180+2"]
[Date "2023.02.28"]
[WhiteClock "0:00:02"]
[BlackClock "0:00:09"]

1. e4 {[%clk 0:02:45]}  c5 {[%clk 0:02:59]} 2. Nc3 {[%clk 0:02:45]}  d6 {[%clk 0:02:59]} 3. Nf3 {[%clk 0:02:45]}  Nf6 {[%clk 0:02:57]} 4. Bb5+ {[%clk 0:02:45]}  Bd7 {[%clk 0:02:56]} 5. Bxd7+ {[%clk 0:02:45]}  Nbxd7 {[%clk 0:02:53]} 6. d3 {[%clk 0:02:45]}  g6 {[%clk 0:02:53]} 7. Be3 {[%clk 0:02:45]}  Bg7 {[%clk 0:02:54]} 8. Qd2 {[%clk 0:02:45]}  Rb8 {[%clk 0:02:49]} 9. Bh6 {[%clk 0:02:45]}  Bxh6 {[%clk 0:02:46]} 10. Qxh6 {[%clk 0:02:43]}  b5 {[%clk 0:02:47]} 11. Ng5 {[%clk 0:02:42]}  b4 {[%clk 0:02:34]} 12. Nd5 {[%clk 0:02:41]}  Nxd5 {[%clk 0:02:33]} 13. Qg7 {[%clk 0:02:40]}  Rf8 {[%clk 0:02:21]} 14. exd5 {[%clk 0:02:37]}  Nf6 {[%clk 0:02:15]} 15. O-O {[%clk 0:02:28]}  Qd7 {[%clk 0:02:12]} 16. Rfe1 {[%clk 0:02:25]}  Qf5 {[%clk 0:01:38]} 17. Rxe7+ {[%clk 0:01:53]}  Kxe7 {[%clk 0:01:29]} 18. Re1+ {[%clk 0:01:54]}  Kd7 {[%clk 0:01:24]} 19. Nxf7 {[%clk 0:01:50]}  Rbe8 {[%clk 0:00:31]} 20. Nh6+ {[%clk 0:00:51]}  Kc8 {[%clk 0:00:20]} 21. Re3 {[%clk 0:00:37]}  Qd7 {[%clk 0:00:18]} 22. Qxd7+ {[%clk 0:00:26]}  Kxd7 {[%clk 0:00:16]} 23. Re6 {[%clk 0:00:20]}  Rxe6 {[%clk 0:00:16]} 24. dxe6+ {[%clk 0:00:21]}  Kxe6 {[%clk 0:00:16]} 25. h3 {[%clk 0:00:19]}  d5 {[%clk 0:00:17]} 26. g4 {[%clk 0:00:16]}  c4 {[%clk 0:00:16]} 27. g5 {[%clk 0:00:16]}  Nh5 {[%clk 0:00:16]} 28. dxc4 {[%clk 0:00:15]}  dxc4 {[%clk 0:00:16]} 29. Ng4 {[%clk 0:00:15]}  Rd8 {[%clk 0:00:16]} 30. Ne3 {[%clk 0:00:15]}  c3 {[%clk 0:00:15]} 31. bxc3 {[%clk 0:00:14]}  bxc3 {[%clk 0:00:16]} 32. Kg2 {[%clk 0:00:13]}  Rb8 {[%clk 0:00:16]} 33. Nd1 {[%clk 0:00:12]}  Rb2 {[%clk 0:00:15]} 34. Nxc3 {[%clk 0:00:12]}  Rxc2 {[%clk 0:00:15]} 35. Nb5 {[%clk 0:00:10]}  Rxa2 {[%clk 0:00:15]} 36. Kf3 {[%clk 0:00:10]}  a5 {[%clk 0:00:15]} 37. Nd4+ {[%clk 0:00:08]}  Kd5 {[%clk 0:00:14]} 38. Nb5 {[%clk 0:00:08]}  Kc4 {[%clk 0:00:11]} 39. Nd6+ {[%clk 0:00:07]}  Kc3 {[%clk 0:00:11]} 40. Nb5+ {[%clk 0:00:06]}  Kb4 {[%clk 0:00:11]} 41. Nd4 {[%clk 0:00:07]}  a4 {[%clk 0:00:10]} 42. Ke3 {[%clk 0:00:04]}  Ra3+ {[%clk 0:00:10]} 43. Ke4 {[%clk 0:00:02]}  Rxh3 {[%clk 0:00:10]} 44. f4 {[%clk 0:00:02]}  a3 {[%clk 0:00:10]} 45. Nc2+ {[%clk 0:00:02]}  Kb3 {[%clk 0:00:10]} 46. Nxa3 {[%clk 0:00:02]}  Kxa3 {[%clk 0:00:10]} 47. f5 {[%clk 0:00:03]}  gxf5+ {[%clk 0:00:10]} 48. Kxf5 {[%clk 0:00:04]}  Ng3+ {[%clk 0:00:10]} 49. Kg4 {[%clk 0:00:04]}  Rh1 {[%clk 0:00:10]} 50. Kxg3 {[%clk 0:00:05]}  Kb4 {[%clk 0:00:09]} 51. Kf4 {[%clk 0:00:05]}  Kc5 {[%clk 0:00:09]} 52. Ke5 {[%clk 0:00:06]}  Rf1 {[%clk 0:00:07]} 53. Ke6 {[%clk 0:00:06]}  Kc6 {[%clk 0:00:07]} 54. Ke7 {[%clk 0:00:06]}  Kd5 {[%clk 0:00:07]} 55. g6 {[%clk 0:00:04]}  hxg6 {[%clk 0:00:07]} 56. Kd7 {[%clk 0:00:03]}  g5 {[%clk 0:00:07]} 57. Ke7 {[%clk 0:00:03]}  g4 {[%clk 0:00:08]} 58. Kd7 {[%clk 0:00:03]}  g3 {[%clk 0:00:09]} 59. Kc7 {[%clk 0:00:03]}  g2 {[%clk 0:00:10]} 60. Kb6 {[%clk 0:00:03]}  g1=Q+ {[%clk 0:00:11]} 61. Kb5 {[%clk 0:00:03]}  Rc1 {[%clk 0:00:11]} 62. Ka6 {[%clk 0:00:02]}  Qg7 {[%clk 0:00:09]} 0-1


[Site "https://www.chess.com"]

[Event "Titled Tuesday Blitz February 28 Early 2023"]
[White "Bulatova, Kamaliya"]
[Black "Kriti Mayur Patel"]
[WhiteFideId "34111546"]
[BlackFideId "35061780"]
[WhiteElo "2039"]
[BlackElo "1306"]
[Result "1-0"]
[Round "09"]
[TimeControl "180+2"]
[Date "2023.02.28"]
[WhiteClock "0:00:10"]
[BlackClock "0:00:13"]

1. d4 {[%clk 0:02:59]}  d5 {[%clk 0:03:00]} 2. Bf4 {[%clk 0:02:58]}  Nf6 {[%clk 0:03:00]} 3. e3 {[%clk 0:02:58]}  e6 {[%clk 0:03:01]} 4. Nd2 {[%clk 0:02:58]}  c5 {[%clk 0:03:02]} 5. c3 {[%clk 0:02:58]}  Nc6 {[%clk 0:03:02]} 6. Bd3 {[%clk 0:02:57]}  Bd6 {[%clk 0:03:02]} 7. Bxd6 {[%clk 0:02:58]}  Qxd6 {[%clk 0:03:01]} 8. f4 {[%clk 0:02:58]}  O-O {[%clk 0:03:01]} 9. Ngf3 {[%clk 0:02:58]}  c4 {[%clk 0:03:01]} 10. Bc2 {[%clk 0:02:57]}  b5 {[%clk 0:03:01]} 11. O-O {[%clk 0:02:57]}  a5 {[%clk 0:03:02]} 12. Ne5 {[%clk 0:02:57]}  b4 {[%clk 0:03:02]} 13. a3 {[%clk 0:02:52]}  bxc3 {[%clk 0:02:52]} 14. bxc3 {[%clk 0:02:51]}  Rb8 {[%clk 0:02:53]} 15. Qf3 {[%clk 0:02:45]}  Bd7 {[%clk 0:02:45]} 16. Qh3 {[%clk 0:02:42]}  g6 {[%clk 0:02:43]} 17. Ndf3 {[%clk 0:02:33]}  Kg7 {[%clk 0:02:41]} 18. Ng5 {[%clk 0:02:20]}  Rb2 {[%clk 0:02:36]} 19. Ng4 {[%clk 0:02:00]}  Nxg4 {[%clk 0:02:21]} 20. Qxh7+ {[%clk 0:01:48]}  Kf6 {[%clk 0:02:21]} 21. Qh4 {[%clk 0:01:10]}  Kg7 {[%clk 0:01:54]} 22. e4 {[%clk 0:00:23]}  Rxc2 {[%clk 0:01:44]} 23. Qh7+ {[%clk 0:00:22]}  Kf6 {[%clk 0:01:40]} 24. e5+ {[%clk 0:00:22]}  Ke7 {[%clk 0:01:01]} 25. exd6+ {[%clk 0:00:22]}  Kxd6 {[%clk 0:01:02]} 26. Nxf7+ {[%clk 0:00:22]}  Kc7 {[%clk 0:01:01]} 27. Ng5 {[%clk 0:00:20]}  Rf6 {[%clk 0:00:46]} 28. Rab1 {[%clk 0:00:18]}  Ne3 {[%clk 0:00:43]} 29. Rf2 {[%clk 0:00:17]}  Rxc3 {[%clk 0:00:37]} 30. Rfb2 {[%clk 0:00:17]}  Rb3 {[%clk 0:00:31]} 31. Rxb3 {[%clk 0:00:17]}  cxb3 {[%clk 0:00:31]} 32. Rxb3 {[%clk 0:00:17]}  Nf5 {[%clk 0:00:27]} 33. Qh8 {[%clk 0:00:11]}  Nfxd4 {[%clk 0:00:20]} 34. Qxf6 {[%clk 0:00:10]}  Nxb3 {[%clk 0:00:20]} 35. Nxe6+ {[%clk 0:00:11]}  Bxe6 {[%clk 0:00:16]} 36. Qxe6 {[%clk 0:00:11]}  Kb6 {[%clk 0:00:16]} 37. Qxd5 {[%clk 0:00:11]}  Nbd4 {[%clk 0:00:14]} 38. a4 {[%clk 0:00:09]}  Ne2+ {[%clk 0:00:14]} 39. Kf2 {[%clk 0:00:09]}  Nxf4 {[%clk 0:00:14]} 40. Qb5+ {[%clk 0:00:08]}  Kc7 {[%clk 0:00:13]} 41. g3 {[%clk 0:00:06]}  Ne6 {[%clk 0:00:12]} 42. Qd5 {[%clk 0:00:05]}  Ned4 {[%clk 0:00:12]} 43. Qf7+ {[%clk 0:00:05]}  Kd6 {[%clk 0:00:12]} 44. Qxg6+ {[%clk 0:00:05]}  Kc5 {[%clk 0:00:13]} 45. Qb1 {[%clk 0:00:03]}  Ne5 {[%clk 0:00:12]} 46. h4 {[%clk 0:00:03]}  Ng4+ {[%clk 0:00:12]} 47. Kg2 {[%clk 0:00:03]}  Ne3+ {[%clk 0:00:11]} 48. Kh3 {[%clk 0:00:03]}  Kd5 {[%clk 0:00:11]} 49. h5 {[%clk 0:00:03]}  Ne2 {[%clk 0:00:09]} 50. Qd3+ {[%clk 0:00:02]}  Nd4 {[%clk 0:00:07]} 51. Qxe3 {[%clk 0:00:03]}  Kc4 {[%clk 0:00:08]} 52. Qxd4+ {[%clk 0:00:03]}  Kxd4 {[%clk 0:00:08]} 53. h6 {[%clk 0:00:04]}  Kc4 {[%clk 0:00:09]} 54. h7 {[%clk 0:00:04]}  Kb4 {[%clk 0:00:09]} 55. h8=Q {[%clk 0:00:05]}  Kxa4 {[%clk 0:00:10]} 56. Qa1+ {[%clk 0:00:06]}  Kb3 {[%clk 0:00:10]} 57. g4 {[%clk 0:00:07]}  Kc2 {[%clk 0:00:11]} 58. g5 {[%clk 0:00:07]}  Kb3 {[%clk 0:00:11]} 59. g6 {[%clk 0:00:08]}  a4 {[%clk 0:00:12]} 60. g7 {[%clk 0:00:09]}  a3 {[%clk 0:00:12]} 61. g8=Q+ {[%clk 0:00:09]}  Kc2 {[%clk 0:00:12]} 62. Qg2+ {[%clk 0:00:09]}  Kd3 {[%clk 0:00:13]} 63. Qxa3+ {[%clk 0:00:09]}  Kc4 {[%clk 0:00:13]} 64. Qe4+ {[%clk 0:00:09]}  Kb5 {[%clk 0:00:13]} 65. Qd5+ {[%clk 0:00:09]}  Kb6 {[%clk 0:00:14]} 66. Qac5+ {[%clk 0:00:09]}  Ka6 {[%clk 0:00:13]} 67. Qb5+ {[%clk 0:00:09]}  Ka7 {[%clk 0:00:13]} 68. Qdb7# {[%clk 0:00:10]} 1-0


[Site "https://www.chess.com"]

[Event "Titled Tuesday Blitz February 28 Early 2023"]
[White "Bashirli, Saadat"]
[Black "Tsyhanchuk, Stanislav"]
[WhiteFideId "13429990"]
[BlackFideId "13505130"]
[WhiteElo "1408"]
[BlackElo "2173"]
[Result "0-1"]
[Round "09"]
[TimeControl "180+2"]
[Date "2023.02.28"]
[WhiteClock "0:00:01"]
[BlackClock "0:00:18"]

1. e4 {[%clk 0:02:56]}  c5 {[%clk 0:02:09]} 2. Nf3 {[%clk 0:02:55]}  d6 {[%clk 0:02:09]} 3. Bb5+ {[%clk 0:02:54]}  Nd7 {[%clk 0:02:09]} 4. O-O {[%clk 0:02:53]}  a6 {[%clk 0:02:07]} 5. Bxd7+ {[%clk 0:02:52]}  Bxd7 {[%clk 0:02:04]} 6. Re1 {[%clk 0:02:52]}  e5 {[%clk 0:02:04]} 7. c3 {[%clk 0:02:50]}  g6 {[%clk 0:02:04]} 8. d4 {[%clk 0:02:51]}  exd4 {[%clk 0:02:03]} 9. cxd4 {[%clk 0:02:51]}  Bg7 {[%clk 0:02:04]} 10. Nc3 {[%clk 0:02:48]}  Ne7 {[%clk 0:02:03]} 11. dxc5 {[%clk 0:02:43]}  dxc5 {[%clk 0:02:02]} 12. Bg5 {[%clk 0:02:44]}  Be6 {[%clk 0:01:56]} 13. Qxd8+ {[%clk 0:02:23]}  Rxd8 {[%clk 0:01:57]} 14. Rad1 {[%clk 0:02:14]}  Rxd1 {[%clk 0:01:49]} 15. Rxd1 {[%clk 0:02:15]}  h6 {[%clk 0:01:49]} 16. Bxe7 {[%clk 0:02:11]}  Kxe7 {[%clk 0:01:50]} 17. Nd5+ {[%clk 0:02:11]}  Bxd5 {[%clk 0:01:46]} 18. Rxd5 {[%clk 0:02:12]}  Rd8 {[%clk 0:01:40]} 19. Rxd8 {[%clk 0:02:06]}  Kxd8 {[%clk 0:01:41]} 20. b3 {[%clk 0:02:04]}  b5 {[%clk 0:01:41]} 21. Kf1 {[%clk 0:02:04]}  Kd7 {[%clk 0:01:40]} 22. Ke2 {[%clk 0:02:05]}  Kd6 {[%clk 0:01:40]} 23. Kd3 {[%clk 0:02:05]}  a5 {[%clk 0:01:40]} 24. Nd2 {[%clk 0:02:04]}  Bd4 {[%clk 0:01:36]} 25. f4 {[%clk 0:02:04]}  f6 {[%clk 0:01:29]} 26. Nf3 {[%clk 0:02:04]}  Ba1 {[%clk 0:01:29]} 27. Nh4 {[%clk 0:02:01]}  g5 {[%clk 0:01:26]} 28. Nf5+ {[%clk 0:01:59]}  Ke6 {[%clk 0:01:25]} 29. g3 {[%clk 0:01:58]}  h5 {[%clk 0:01:08]} 30. fxg5 {[%clk 0:01:42]}  fxg5 {[%clk 0:01:06]} 31. a4 {[%clk 0:01:35]}  bxa4 {[%clk 0:00:56]} 32. bxa4 {[%clk 0:01:36]}  Ke5 {[%clk 0:00:56]} 33. Ng7 {[%clk 0:01:31]}  h4 {[%clk 0:00:55]} 34. gxh4 {[%clk 0:01:27]}  gxh4 {[%clk 0:00:55]} 35. h3 {[%clk 0:01:27]}  Bd4 {[%clk 0:00:52]} 36. Nf5 {[%clk 0:01:27]}  Bf2 {[%clk 0:00:51]} 37. Nh6 {[%clk 0:01:09]}  c4+ {[%clk 0:00:48]} 38. Kxc4 {[%clk 0:01:07]}  Kxe4 {[%clk 0:00:48]} 39. Kb5 {[%clk 0:01:02]}  Be1 {[%clk 0:00:47]} 40. Nf7 {[%clk 0:01:00]}  Kf4 {[%clk 0:00:45]} 41. Kb6 {[%clk 0:00:48]}  Bd2 {[%clk 0:00:45]} 42. Nd6 {[%clk 0:00:39]}  Bb4 {[%clk 0:00:36]} 43. Nf7 {[%clk 0:00:37]}  Kg3 {[%clk 0:00:34]} 44. Ng5 {[%clk 0:00:34]}  Be7 {[%clk 0:00:30]} 45. Ne4+ {[%clk 0:00:31]}  Kf4 {[%clk 0:00:28]} 46. Nf2 {[%clk 0:00:29]}  Bb4 {[%clk 0:00:26]} 47. Kb5 {[%clk 0:00:13]}  Kg3 {[%clk 0:00:25]} 48. Ne4+ {[%clk 0:00:05]}  Kxh3 {[%clk 0:00:24]} 49. Kc4 {[%clk 0:00:02]}  Kg2 {[%clk 0:00:23]} 50. Ng5 {[%clk 0:00:01]}  Bd2 {[%clk 0:00:18]} 0-1


[Site "https://www.chess.com"]

[Event "Titled Tuesday Blitz February 28 Early 2023"]
[White "Seifert, Henryk"]
[Black "Mendez Machado, Andre"]
[WhiteFideId "1100963"]
[BlackFideId "6603793"]
[WhiteElo "2071"]
[BlackElo "1989"]
[Result "0-1"]
[Round "09"]
[TimeControl "180+2"]
[Date "2023.02.28"]
[WhiteClock "0:00:04"]
[BlackClock "0:00:19"]

1. e4 {[%clk 0:03:00]}  e5 {[%clk 0:02:59]} 2. Nf3 {[%clk 0:03:00]}  Nc6 {[%clk 0:03:00]} 3. Nc3 {[%clk 0:02:59]}  Nf6 {[%clk 0:03:00]} 4. Bb5 {[%clk 0:02:58]}  Nd4 {[%clk 0:03:00]} 5. Bc4 {[%clk 0:02:56]}  Nxf3+ {[%clk 0:02:53]} 6. Qxf3 {[%clk 0:02:55]}  Bc5 {[%clk 0:02:54]} 7. d3 {[%clk 0:02:49]}  c6 {[%clk 0:02:21]} 8. Bg5 {[%clk 0:02:46]}  h6 {[%clk 0:02:19]} 9. Bxf6 {[%clk 0:02:44]}  Qxf6 {[%clk 0:02:20]} 10. Qxf6 {[%clk 0:02:43]}  gxf6 {[%clk 0:02:21]} 11. O-O {[%clk 0:02:39]}  Rg8 {[%clk 0:02:18]} 12. Kh1 {[%clk 0:02:25]}  d6 {[%clk 0:02:13]} 13. f4 {[%clk 0:02:23]}  Be6 {[%clk 0:02:12]} 14. fxe5 {[%clk 0:02:06]}  Bxc4 {[%clk 0:02:07]} 15. dxc4 {[%clk 0:02:06]}  fxe5 {[%clk 0:02:05]} 16. Rf3 {[%clk 0:01:55]}  Ke7 {[%clk 0:01:53]} 17. Raf1 {[%clk 0:01:49]}  Raf8 {[%clk 0:01:52]} 18. Na4 {[%clk 0:01:44]}  Bd4 {[%clk 0:01:32]} 19. c3 {[%clk 0:01:40]}  Bb6 {[%clk 0:01:30]} 20. Nxb6 {[%clk 0:01:39]}  axb6 {[%clk 0:01:31]} 21. a4 {[%clk 0:01:36]}  Rg4 {[%clk 0:01:28]} 22. Re1 {[%clk 0:01:22]}  f5 {[%clk 0:01:17]} 23. exf5 {[%clk 0:01:16]}  Rxc4 {[%clk 0:01:12]} 24. b3 {[%clk 0:01:11]}  Rg4 {[%clk 0:01:04]} 25. h3 {[%clk 0:01:11]}  Rg5 {[%clk 0:01:00]} 26. Ref1 {[%clk 0:00:54]}  Kf6 {[%clk 0:00:56]} 27. Kh2 {[%clk 0:00:49]}  h5 {[%clk 0:00:48]} 28. b4 {[%clk 0:00:20]}  e4 {[%clk 0:00:43]} 29. Rf4 {[%clk 0:00:18]}  d5 {[%clk 0:00:43]} 30. g3 {[%clk 0:00:16]}  Rfg8 {[%clk 0:00:40]} 31. Rh4 {[%clk 0:00:07]}  e3 {[%clk 0:00:24]} 32. Rf3 {[%clk 0:00:04]}  Re8 {[%clk 0:00:19]} 0-1


[Site "https://www.chess.com"]

[Event "Titled Tuesday Blitz February 28 Early 2023"]
[White "lisjakzlatko1"]
[Black "Kalaiyalahan, Akshaya"]
[BlackFideId "422894"]
[WhiteElo "2155"]
[BlackElo "2043"]
[Result "1-0"]
[Round "09"]
[TimeControl "180+2"]
[Date "2023.02.28"]
[WhiteClock "0:00:52"]
[BlackClock "0:00:27"]

1. e4 {[%clk 0:03:00]}  d5 {[%clk 0:02:58]} 2. exd5 {[%clk 0:02:59]}  Qxd5 {[%clk 0:02:57]} 3. Nc3 {[%clk 0:02:59]}  Qa5 {[%clk 0:02:57]} 4. Nf3 {[%clk 0:02:58]}  Nf6 {[%clk 0:02:57]} 5. b4 {[%clk 0:02:57]}  Qxb4 {[%clk 0:02:53]} 6. a4 {[%clk 0:02:56]}  e6 {[%clk 0:02:47]} 7. Ba3 {[%clk 0:02:54]}  Qa5 {[%clk 0:02:44]} 8. Bxf8 {[%clk 0:02:52]}  Kxf8 {[%clk 0:02:43]} 9. Be2 {[%clk 0:02:28]}  g6 {[%clk 0:02:42]} 10. h4 {[%clk 0:02:26]}  h5 {[%clk 0:02:40]} 11. Ng5 {[%clk 0:02:19]}  Kg7 {[%clk 0:02:39]} 12. Bf3 {[%clk 0:02:17]}  c6 {[%clk 0:02:37]} 13. O-O {[%clk 0:02:13]}  Nbd7 {[%clk 0:02:37]} 14. Rb1 {[%clk 0:02:08]}  Ne5 {[%clk 0:02:36]} 15. Be2 {[%clk 0:02:02]}  b6 {[%clk 0:02:27]} 16. Rb3 {[%clk 0:01:55]}  Ba6 {[%clk 0:02:25]} 17. Bxa6 {[%clk 0:01:43]}  Qxa6 {[%clk 0:02:25]} 18. Qa1 {[%clk 0:01:39]}  Qc4 {[%clk 0:01:40]} 19. Re1 {[%clk 0:01:20]}  Qf4 {[%clk 0:01:12]} 20. Nce4 {[%clk 0:01:10]}  Nfg4 {[%clk 0:00:50]} 21. g3 {[%clk 0:01:03]}  Qf5 {[%clk 0:00:40]} 22. Rf3 {[%clk 0:01:03]}  f6 {[%clk 0:00:31]} 23. Rxf5 {[%clk 0:00:57]}  exf5 {[%clk 0:00:32]} 24. Nxf6 {[%clk 0:00:53]}  Kxf6 {[%clk 0:00:27]} 25. f4 {[%clk 0:00:52]} 1-0


[Site "https://www.chess.com"]

[Event "Titled Tuesday Blitz February 28 Early 2023"]
[White "Yanayt, Eugene"]
[Black "Simonovic, Miroslav"]
[WhiteFideId "2020165"]
[BlackFideId "919152"]
[WhiteElo "2083"]
[BlackElo "2057"]
[Result "0-1"]
[Round "09"]
[TimeControl "180+2"]
[Date "2023.02.28"]
[WhiteClock "0:00:13"]
[BlackClock "0:00:24"]

1. e4 {[%clk 0:03:00]}  c5 {[%clk 0:03:00]} 2. Nf3 {[%clk 0:02:57]}  Nc6 {[%clk 0:03:00]} 3. d4 {[%clk 0:02:48]}  cxd4 {[%clk 0:03:01]} 4. Nxd4 {[%clk 0:02:47]}  a6 {[%clk 0:03:02]} 5. c4 {[%clk 0:02:44]}  g6 {[%clk 0:03:01]} 6. Nc3 {[%clk 0:02:43]}  Bg7 {[%clk 0:03:01]} 7. Be3 {[%clk 0:02:43]}  d6 {[%clk 0:03:00]} 8. Be2 {[%clk 0:02:43]}  Nf6 {[%clk 0:03:00]} 9. O-O {[%clk 0:02:42]}  O-O {[%clk 0:03:00]} 10. Qd2 {[%clk 0:02:41]}  Nxd4 {[%clk 0:02:55]} 11. Bxd4 {[%clk 0:02:41]}  Be6 {[%clk 0:02:56]} 12. f4 {[%clk 0:02:29]}  Qd7 {[%clk 0:02:51]} 13. h3 {[%clk 0:02:26]}  h5 {[%clk 0:02:50]} 14. Bd3 {[%clk 0:02:11]}  Rac8 {[%clk 0:02:48]} 15. b3 {[%clk 0:02:11]}  Bxh3 {[%clk 0:02:29]} 16. Bxf6 {[%clk 0:01:33]}  Bxf6 {[%clk 0:02:23]} 17. gxh3 {[%clk 0:01:20]}  Qxh3 {[%clk 0:02:24]} 18. Kf2 {[%clk 0:00:53]}  Bd4+ {[%clk 0:00:55]} 19. Ke1 {[%clk 0:00:40]}  Be3 {[%clk 0:00:53]} 20. Qe2 {[%clk 0:00:33]}  Bd4 {[%clk 0:00:53]} 21. Rc1 {[%clk 0:00:32]}  Qg3+ {[%clk 0:00:50]} 22. Kd1 {[%clk 0:00:32]}  Be3 {[%clk 0:00:50]} 23. Rc2 {[%clk 0:00:31]}  Bxf4 {[%clk 0:00:48]} 24. Nd5 {[%clk 0:00:30]}  Bg5 {[%clk 0:00:42]} 25. Rc3 {[%clk 0:00:26]}  Qe5 {[%clk 0:00:42]} 26. Bb1 {[%clk 0:00:17]}  e6 {[%clk 0:00:41]} 27. Rd3 {[%clk 0:00:17]}  exd5 {[%clk 0:00:40]} 28. Rxd5 {[%clk 0:00:18]}  Qe7 {[%clk 0:00:37]} 29. e5 {[%clk 0:00:18]}  dxe5 {[%clk 0:00:35]} 30. Rxe5 {[%clk 0:00:18]}  Rfd8+ {[%clk 0:00:27]} 31. Bd3 {[%clk 0:00:17]}  Rxd3+ {[%clk 0:00:25]} 32. Qxd3 {[%clk 0:00:17]}  Qxe5 {[%clk 0:00:25]} 33. Qd7 {[%clk 0:00:18]}  Rd8 {[%clk 0:00:25]} 34. Rxf7 {[%clk 0:00:17]}  Rxd7+ {[%clk 0:00:24]} 35. Rxd7 {[%clk 0:00:13]} 0-1


[Site "https://www.chess.com"]

[Event "Titled Tuesday Blitz February 28 Early 2023"]
[White "Hon, Eric"]
[Black "parintele_chess"]
[WhiteFideId "2097117"]
[WhiteElo "1918"]
[BlackElo "2225"]
[Result "1-0"]
[Round "09"]
[TimeControl "180+2"]
[Date "2023.02.28"]
[WhiteClock "0:00:44"]
[BlackClock "0:00:06"]

1. e4 {[%clk 0:03:00]}  d6 {[%clk 0:02:49]} 2. d4 {[%clk 0:02:58]}  Nf6 {[%clk 0:02:49]} 3. Bd3 {[%clk 0:02:56]}  e5 {[%clk 0:02:49]} 4. dxe5 {[%clk 0:02:56]}  dxe5 {[%clk 0:02:46]} 5. Nf3 {[%clk 0:02:56]}  Bd6 {[%clk 0:02:36]} 6. h3 {[%clk 0:02:54]}  h6 {[%clk 0:02:35]} 7. O-O {[%clk 0:02:54]}  O-O {[%clk 0:02:35]} 8. Be3 {[%clk 0:02:53]}  Nc6 {[%clk 0:02:32]} 9. c4 {[%clk 0:02:51]}  Qe7 {[%clk 0:02:20]} 10. Nc3 {[%clk 0:02:48]}  Bc5 {[%clk 0:02:17]} 11. Bxc5 {[%clk 0:02:39]}  Qxc5 {[%clk 0:02:18]} 12. Nd5 {[%clk 0:02:36]}  Nxd5 {[%clk 0:02:18]} 13. cxd5 {[%clk 0:02:36]}  Nb4 {[%clk 0:02:10]} 14. a3 {[%clk 0:02:31]}  Nxd3 {[%clk 0:02:07]} 15. Qxd3 {[%clk 0:02:32]}  Qd6 {[%clk 0:01:58]} 16. Qc3 {[%clk 0:02:29]}  f5 {[%clk 0:01:50]} 17. Qxe5 {[%clk 0:02:22]}  Qxe5 {[%clk 0:01:45]} 18. Nxe5 {[%clk 0:02:22]}  fxe4 {[%clk 0:01:45]} 19. Rac1 {[%clk 0:02:12]}  Re8 {[%clk 0:01:29]} 20. f4 {[%clk 0:02:04]}  exf3 {[%clk 0:01:28]} 21. Nxf3 {[%clk 0:02:04]}  Re7 {[%clk 0:01:18]} 22. Nh4 {[%clk 0:01:49]}  c6 {[%clk 0:00:33]} 23. dxc6 {[%clk 0:01:35]}  bxc6 {[%clk 0:00:34]} 24. Rxc6 {[%clk 0:01:35]}  Bb7 {[%clk 0:00:33]} 25. Rg6 {[%clk 0:01:17]}  Re4 {[%clk 0:00:05]} 26. Nf5 {[%clk 0:01:16]}  Re2 {[%clk 0:00:02]} 27. Rxg7+ {[%clk 0:01:14]}  Kh8 {[%clk 0:00:02]} 28. Rg3 {[%clk 0:01:10]}  Rg8 {[%clk 0:00:02]} 29. Rxg8+ {[%clk 0:01:07]}  Kxg8 {[%clk 0:00:02]} 30. Rf2 {[%clk 0:01:07]}  Re1+ {[%clk 0:00:03]} 31. Kh2 {[%clk 0:01:07]}  Be4 {[%clk 0:00:04]} 32. Nxh6+ {[%clk 0:01:06]}  Kh7 {[%clk 0:00:03]} 33. Ng4 {[%clk 0:01:03]}  Bg6 {[%clk 0:00:04]} 34. Kg3 {[%clk 0:00:58]}  Kg7 {[%clk 0:00:04]} 35. Kh4 {[%clk 0:00:57]}  Re4 {[%clk 0:00:04]} 36. Rd2 {[%clk 0:00:55]}  Re7 {[%clk 0:00:02]} 37. Kg3 {[%clk 0:00:54]}  Rc7 {[%clk 0:00:02]} 38. Ne5 {[%clk 0:00:52]}  Bf5 {[%clk 0:00:02]} 39. Nf3 {[%clk 0:00:51]}  Bg6 {[%clk 0:00:02]} 40. b4 {[%clk 0:00:49]}  Rc3 {[%clk 0:00:02]} 41. Rd7+ {[%clk 0:00:49]}  Kh6 {[%clk 0:00:02]} 42. Rxa7 {[%clk 0:00:48]}  Bc2 {[%clk 0:00:02]} 43. Ra6+ {[%clk 0:00:46]}  Kg7 {[%clk 0:00:02]} 44. b5 {[%clk 0:00:44]}  Bg6 {[%clk 0:00:02]} 45. b6 {[%clk 0:00:43]}  Rb3 {[%clk 0:00:02]} 46. Ra7+ {[%clk 0:00:42]}  Kh8 {[%clk 0:00:02]} 47. b7 {[%clk 0:00:42]}  Be8 {[%clk 0:00:01]} 48. Ra8 {[%clk 0:00:42]}  Rxb7 {[%clk 0:00:02]} 49. Rxe8+ {[%clk 0:00:43]}  Kg7 {[%clk 0:00:02]} 50. Re2 {[%clk 0:00:43]}  Rb6 {[%clk 0:00:02]} 51. Ra2 {[%clk 0:00:43]}  Ra6 {[%clk 0:00:02]} 52. a4 {[%clk 0:00:44]}  Rb6 {[%clk 0:00:03]} 53. a5 {[%clk 0:00:43]}  Ra6 {[%clk 0:00:04]} 54. Nd4 {[%clk 0:00:43]}  Kf7 {[%clk 0:00:03]} 55. Nb3 {[%clk 0:00:44]}  Kg7 {[%clk 0:00:03]} 56. Nc5 {[%clk 0:00:44]}  Rg6+ {[%clk 0:00:03]} 57. Kh2 {[%clk 0:00:43]}  Kh7 {[%clk 0:00:04]} 58. a6 {[%clk 0:00:44]}  Rg8 {[%clk 0:00:04]} 59. a7 {[%clk 0:00:44]}  Rg7 {[%clk 0:00:05]} 60. a8=Q {[%clk 0:00:44]}  Rg6 {[%clk 0:00:05]} 61. Qe4 {[%clk 0:00:44]}  Kg7 {[%clk 0:00:05]} 62. Ra7+ {[%clk 0:00:44]}  Kh6 {[%clk 0:00:06]} 63. Qh4# {[%clk 0:00:44]} 1-0


[Site "https://www.chess.com"]